[Event "Titled Tuesday Blitz April 25 Early 2023"]
[White "Harsha Bharathakoti"]
[Black "Sliwicka, Alicja"]
[WhiteFideId "5078776"]
[BlackFideId "1150677"]
[WhiteElo "2504"]
[BlackElo "2206"]
[Result "1-0"]
[Round "02"]
[TimeControl "180+2"]
[Date "2023.04.25"]
[WhiteClock "0:00:07"]
[BlackClock "0:00:04"]

1. e4 {[%clk 0:03:00]}  c5 {[%clk 0:02:59]} 2. Nc3 {[%clk 0:02:59]}  Nc6 {[%clk 0:02:58]} 3. Bb5 {[%clk 0:02:59]}  Nd4 {[%clk 0:02:57]} 4. Nf3 {[%clk 0:02:59]}  g6 {[%clk 0:02:55]} 5. O-O {[%clk 0:02:48]}  Bg7 {[%clk 0:02:50]} 6. Nxd4 {[%clk 0:02:45]}  cxd4 {[%clk 0:02:47]} 7. Ne2 {[%clk 0:02:45]}  a6 {[%clk 0:02:46]} 8. Bc4 {[%clk 0:02:45]}  e6 {[%clk 0:02:39]} 9. c3 {[%clk 0:02:44]}  dxc3 {[%clk 0:02:34]} 10. dxc3 {[%clk 0:02:42]}  Ne7 {[%clk 0:02:32]} 11. Bf4 {[%clk 0:02:24]}  d5 {[%clk 0:02:29]} 12. exd5 {[%clk 0:02:25]}  exd5 {[%clk 0:02:26]} 13. Bb3 {[%clk 0:02:24]}  O-O {[%clk 0:02:25]} 14. Re1 {[%clk 0:02:22]}  Qb6 {[%clk 0:02:07]} 15. Be3 {[%clk 0:02:12]}  Qc7 {[%clk 0:01:59]} 16. Bd4 {[%clk 0:01:59]}  Bh6 {[%clk 0:01:49]} 17. Ng3 {[%clk 0:01:51]}  Be6 {[%clk 0:01:44]} 18. Be5 {[%clk 0:01:34]}  Qd7 {[%clk 0:01:42]} 19. Qf3 {[%clk 0:01:25]}  Nc6 {[%clk 0:01:37]} 20. Bf6 {[%clk 0:01:22]}  Bg7 {[%clk 0:01:32]} 21. Bxg7 {[%clk 0:01:19]}  Kxg7 {[%clk 0:01:33]} 22. Rad1 {[%clk 0:01:18]}  Rad8 {[%clk 0:01:32]} 23. Qf4 {[%clk 0:01:12]}  f6 {[%clk 0:01:25]} 24. Rd2 {[%clk 0:01:06]}  h5 {[%clk 0:01:17]} 25. h3 {[%clk 0:01:06]}  Ne5 {[%clk 0:00:48]} 26. Red1 {[%clk 0:00:58]}  Qc6 {[%clk 0:00:42]} 27. Ne2 {[%clk 0:00:53]}  g5 {[%clk 0:00:37]} 28. Qe3 {[%clk 0:00:54]}  Rde8 {[%clk 0:00:35]} 29. Nd4 {[%clk 0:00:54]}  Qc8 {[%clk 0:00:24]} 30. Nxe6+ {[%clk 0:00:50]}  Rxe6 {[%clk 0:00:25]} 31. Bxd5 {[%clk 0:00:47]}  Re7 {[%clk 0:00:25]} 32. Qb6 {[%clk 0:00:47]}  Qf5 {[%clk 0:00:23]} 33. Qb4 {[%clk 0:00:41]}  Rfe8 {[%clk 0:00:22]} 34. Be4 {[%clk 0:00:33]}  Qc8 {[%clk 0:00:18]} 35. Bc2 {[%clk 0:00:22]}  g4 {[%clk 0:00:08]} 36. hxg4 {[%clk 0:00:20]}  hxg4 {[%clk 0:00:08]} 37. Qf4 {[%clk 0:00:19]}  Rh8 {[%clk 0:00:06]} 38. Rd6 {[%clk 0:00:19]}  Rh6 {[%clk 0:00:06]} 39. Rd8 {[%clk 0:00:17]}  Qc6 {[%clk 0:00:04]} 40. Be4 {[%clk 0:00:16]}  Qc4 {[%clk 0:00:02]} 41. b3 {[%clk 0:00:02]}  Qe2 {[%clk 0:00:02]} 42. R8d2 {[%clk 0:00:02]}  Qxe4 {[%clk 0:00:02]} 43. Qxe4 {[%clk 0:00:02]}  Nf3+ {[%clk 0:00:03]} 44. gxf3 {[%clk 0:00:03]}  Rxe4 {[%clk 0:00:03]} 45. fxe4 {[%clk 0:00:04]}  Kg6 {[%clk 0:00:04]} 46. Kg2 {[%clk 0:00:04]}  Kg5 {[%clk 0:00:04]} 47. Rd5+ {[%clk 0:00:05]}  Kg6 {[%clk 0:00:04]} 48. R1d4 {[%clk 0:00:06]}  Rh7 {[%clk 0:00:04]} 49. Kg3 {[%clk 0:00:07]} 1-0


[Site "https://www.chess.com"]

[Event "Titled Tuesday Blitz April 25 Early 2023"]
[White "Kukhmazov, Arsen"]
[Black "Moksh Amit Doshi"]
[WhiteFideId "24108260"]
[BlackFideId "25064967"]
[WhiteElo "2396"]
[BlackElo "2297"]
[Result "0-1"]
[Round "02"]
[TimeControl "180+2"]
[Date "2023.04.25"]
[WhiteClock "0:00:09"]
[BlackClock "0:00:38"]

1. d4 {[%clk 0:02:59]}  Nf6 {[%clk 0:02:56]} 2. c4 {[%clk 0:02:59]}  e6 {[%clk 0:02:51]} 3. Nc3 {[%clk 0:02:58]}  Bb4 {[%clk 0:02:49]} 4. Qc2 {[%clk 0:02:58]}  O-O {[%clk 0:02:48]} 5. e4 {[%clk 0:02:58]}  d5 {[%clk 0:02:48]} 6. e5 {[%clk 0:02:58]}  Ne4 {[%clk 0:02:48]} 7. Bd3 {[%clk 0:02:57]}  c5 {[%clk 0:02:49]} 8. Nf3 {[%clk 0:02:56]}  cxd4 {[%clk 0:02:49]} 9. Nxd4 {[%clk 0:02:57]}  Nd7 {[%clk 0:02:48]} 10. Bf4 {[%clk 0:02:57]}  Qh4 {[%clk 0:02:48]} 11. g3 {[%clk 0:02:57]}  Qh5 {[%clk 0:02:48]} 12. O-O {[%clk 0:02:56]}  g5 {[%clk 0:02:47]} 13. cxd5 {[%clk 0:02:51]}  Bxc3 {[%clk 0:02:46]} 14. bxc3 {[%clk 0:02:49]}  exd5 {[%clk 0:02:45]} 15. e6 {[%clk 0:02:50]}  gxf4 {[%clk 0:02:40]} 16. exd7 {[%clk 0:02:50]}  fxg3 {[%clk 0:02:37]} 17. fxg3 {[%clk 0:02:47]}  Bxd7 {[%clk 0:02:37]} 18. Bxe4 {[%clk 0:02:48]}  dxe4 {[%clk 0:02:37]} 19. Qxe4 {[%clk 0:02:48]}  b6 {[%clk 0:02:29]} 20. Qb7 {[%clk 0:02:30]}  Bh3 {[%clk 0:02:15]} 21. Rf4 {[%clk 0:02:11]}  Qe5 {[%clk 0:02:06]} 22. Qf3 {[%clk 0:02:04]}  Rae8 {[%clk 0:02:02]} 23. Kf2 {[%clk 0:01:02]}  Bd7 {[%clk 0:01:36]} 24. Qe2 {[%clk 0:00:54]}  Qd5 {[%clk 0:01:15]} 25. Qc2 {[%clk 0:00:45]}  Re5 {[%clk 0:01:09]} 26. Rd1 {[%clk 0:00:31]}  Rfe8 {[%clk 0:01:06]} 27. Nf3 {[%clk 0:00:24]}  Qc5+ {[%clk 0:00:58]} 28. Rdd4 {[%clk 0:00:23]}  Re3 {[%clk 0:00:47]} 29. c4 {[%clk 0:00:08]}  Bc6 {[%clk 0:00:44]} 30. Qd2 {[%clk 0:00:09]}  Bxf3 {[%clk 0:00:38]} 31. Rxf3 {[%clk 0:00:09]}  Re2+ {[%clk 0:00:38]} 0-1


[Site "https://www.chess.com"]

[Event "Titled Tuesday Blitz April 25 Early 2023"]
[White "Smirnov, Pavel"]
[Black "Lund, Gunnar"]
[WhiteFideId "4123425"]
[BlackFideId "1520814"]
[WhiteElo "2519"]
[BlackElo "2233"]
[Result "1-0"]
[Round "02"]
[TimeControl "180+2"]
[Date "2023.04.25"]
[WhiteClock "0:00:50"]
[BlackClock "0:00:06"]

1. d4 {[%clk 0:03:00]}  d6 {[%clk 0:02:51]} 2. e4 {[%clk 0:03:00]}  Nf6 {[%clk 0:02:51]} 3. Nc3 {[%clk 0:03:01]}  e5 {[%clk 0:02:51]} 4. Nf3 {[%clk 0:03:01]}  exd4 {[%clk 0:02:51]} 5. Nxd4 {[%clk 0:03:00]}  Be7 {[%clk 0:02:52]} 6. g3 {[%clk 0:02:57]}  Nbd7 {[%clk 0:02:49]} 7. Bg2 {[%clk 0:02:56]}  O-O {[%clk 0:02:49]} 8. O-O {[%clk 0:02:56]}  Ne5 {[%clk 0:02:50]} 9. h3 {[%clk 0:02:51]}  Re8 {[%clk 0:02:50]} 10. b3 {[%clk 0:02:50]}  c6 {[%clk 0:02:49]} 11. Bb2 {[%clk 0:02:50]}  Bf8 {[%clk 0:02:48]} 12. Qd2 {[%clk 0:02:50]}  Qc7 {[%clk 0:02:42]} 13. f4 {[%clk 0:02:47]}  Ng6 {[%clk 0:02:42]} 14. a4 {[%clk 0:02:47]}  Bd7 {[%clk 0:02:31]} 15. Kh2 {[%clk 0:02:43]}  Rad8 {[%clk 0:02:30]} 16. Rae1 {[%clk 0:02:43]}  Bc8 {[%clk 0:02:30]} 17. Qf2 {[%clk 0:02:43]}  b6 {[%clk 0:02:28]} 18. Nf3 {[%clk 0:02:28]}  Bb7 {[%clk 0:02:24]} 19. e5 {[%clk 0:02:27]}  dxe5 {[%clk 0:02:21]} 20. fxe5 {[%clk 0:02:27]}  Nd5 {[%clk 0:02:20]} 21. Nxd5 {[%clk 0:02:26]}  cxd5 {[%clk 0:01:54]} 22. Ng5 {[%clk 0:02:26]}  Ba6 {[%clk 0:01:14]} 23. Nxf7 {[%clk 0:01:53]}  Bxf1 {[%clk 0:01:12]} 24. Rxf1 {[%clk 0:01:54]}  Bc5 {[%clk 0:01:02]} 25. Qf5 {[%clk 0:01:24]}  Rd7 {[%clk 0:00:33]} 26. e6 {[%clk 0:01:20]}  Rde7 {[%clk 0:00:33]} 27. Bxd5 {[%clk 0:01:09]}  Bd6 {[%clk 0:00:18]} 28. Nxd6 {[%clk 0:01:04]}  Qxd6 {[%clk 0:00:19]} 29. Qf7+ {[%clk 0:01:04]}  Rxf7 {[%clk 0:00:19]} 30. exf7+ {[%clk 0:01:04]}  Kf8 {[%clk 0:00:20]} 31. Bxg7+ {[%clk 0:01:04]}  Kxg7 {[%clk 0:00:14]} 32. fxe8=Q {[%clk 0:01:00]}  Qxd5 {[%clk 0:00:15]} 33. Qe3 {[%clk 0:00:58]}  h5 {[%clk 0:00:11]} 34. Qc3+ {[%clk 0:00:55]}  Kh6 {[%clk 0:00:11]} 35. Rf7 {[%clk 0:00:55]}  h4 {[%clk 0:00:09]} 36. Qe3+ {[%clk 0:00:51]}  Qg5 {[%clk 0:00:06]} 37. Rh7+ {[%clk 0:00:50]} 1-0


[Site "https://www.chess.com"]

[Event "Titled Tuesday Blitz April 25 Early 2023"]
[White "MKlose11"]
[Black "Shomoev, Anton"]
[BlackFideId "4135148"]
[WhiteElo "2548"]
[BlackElo "2451"]
[Result "0-1"]
[Round "02"]
[TimeControl "180+2"]
[Date "2023.04.25"]
[WhiteClock "0:00:03"]
[BlackClock "0:00:11"]

1. e4 {[%clk 0:03:00]}  c5 {[%clk 0:02:59]} 2. Nc3 {[%clk 0:02:58]}  d6 {[%clk 0:02:55]} 3. g3 {[%clk 0:02:59]}  Nc6 {[%clk 0:02:54]} 4. Bg2 {[%clk 0:02:58]}  g6 {[%clk 0:02:55]} 5. d3 {[%clk 0:02:54]}  Bg7 {[%clk 0:02:56]} 6. Be3 {[%clk 0:02:52]}  Rb8 {[%clk 0:02:56]} 7. Qd2 {[%clk 0:02:52]}  b5 {[%clk 0:02:56]} 8. Nge2 {[%clk 0:02:51]}  Nd4 {[%clk 0:02:56]} 9. Nc1 {[%clk 0:02:51]}  Bh3 {[%clk 0:02:41]} 10. Bxd4 {[%clk 0:02:42]}  cxd4 {[%clk 0:02:41]} 11. Bxh3 {[%clk 0:02:41]}  dxc3 {[%clk 0:02:41]} 12. bxc3 {[%clk 0:02:42]}  b4 {[%clk 0:02:42]} 13. Ne2 {[%clk 0:02:37]}  bxc3 {[%clk 0:02:42]} 14. Qe3 {[%clk 0:02:37]}  h5 {[%clk 0:02:31]} 15. Qxa7 {[%clk 0:02:33]}  h4 {[%clk 0:02:27]} 16. Qa4+ {[%clk 0:02:25]}  Kf8 {[%clk 0:02:26]} 17. Bg2 {[%clk 0:02:22]}  Rh5 {[%clk 0:02:16]} 18. O-O {[%clk 0:02:16]}  Rb2 {[%clk 0:02:06]} 19. d4 {[%clk 0:01:55]}  Qa5 {[%clk 0:01:19]} 20. Qc4 {[%clk 0:01:45]}  Bf6 {[%clk 0:01:18]} 21. f4 {[%clk 0:01:16]}  hxg3 {[%clk 0:01:11]} 22. hxg3 {[%clk 0:01:15]}  Rxc2 {[%clk 0:00:36]} 23. e5 {[%clk 0:01:13]}  dxe5 {[%clk 0:00:34]} 24. dxe5 {[%clk 0:01:11]}  Qb6+ {[%clk 0:00:30]} 25. Qd4 {[%clk 0:00:17]}  Qa5 {[%clk 0:00:20]} 26. Bf3 {[%clk 0:00:13]}  Bxe5 {[%clk 0:00:19]} 27. fxe5 {[%clk 0:00:12]}  Rxe5 {[%clk 0:00:20]} 28. Rf2 {[%clk 0:00:10]}  Nf6 {[%clk 0:00:20]} 29. Raf1 {[%clk 0:00:09]}  Kg7 {[%clk 0:00:20]} 30. Nf4 {[%clk 0:00:09]}  Rxf2 {[%clk 0:00:16]} 31. Rxf2 {[%clk 0:00:10]}  Re1+ {[%clk 0:00:15]} 32. Kg2 {[%clk 0:00:10]}  e5 {[%clk 0:00:16]} 33. Ne6+ {[%clk 0:00:03]}  fxe6 {[%clk 0:00:16]} 34. Qc4 {[%clk 0:00:04]}  e4 {[%clk 0:00:12]} 35. Bxe4 {[%clk 0:00:02]}  Rxe4 {[%clk 0:00:12]} 36. Qc7+ {[%clk 0:00:03]}  Qxc7 {[%clk 0:00:11]} 0-1


[Site "https://www.chess.com"]

[Event "Titled Tuesday Blitz April 25 Early 2023"]
[White "Kosakowski, Jakub"]
[Black "Sadovsky, Artem"]
[WhiteFideId "1185080"]
[BlackFideId "4155840"]
[WhiteElo "2488"]
[BlackElo "2314"]
[Result "1-0"]
[Round "02"]
[TimeControl "180+2"]
[Date "2023.04.25"]
[WhiteClock "0:00:14"]
[BlackClock "0:00:02"]

1. e4 {[%clk 0:02:57]}  g6 {[%clk 0:02:59]} 2. g3 {[%clk 0:02:55]}  Bg7 {[%clk 0:02:56]} 3. Bg2 {[%clk 0:02:55]}  d6 {[%clk 0:02:54]} 4. d4 {[%clk 0:02:53]}  Nf6 {[%clk 0:02:52]} 5. Nc3 {[%clk 0:02:53]}  O-O {[%clk 0:02:52]} 6. Nge2 {[%clk 0:02:53]}  Nc6 {[%clk 0:02:49]} 7. O-O {[%clk 0:02:51]}  Rb8 {[%clk 0:02:48]} 8. h3 {[%clk 0:02:49]}  e5 {[%clk 0:02:48]} 9. Be3 {[%clk 0:02:48]}  a6 {[%clk 0:02:46]} 10. dxe5 {[%clk 0:02:46]}  Nxe5 {[%clk 0:02:44]} 11. b3 {[%clk 0:02:46]}  b5 {[%clk 0:02:39]} 12. f4 {[%clk 0:02:45]}  Ned7 {[%clk 0:02:38]} 13. a3 {[%clk 0:02:31]}  Bb7 {[%clk 0:02:38]} 14. Qd2 {[%clk 0:02:30]}  Re8 {[%clk 0:02:37]} 15. Rad1 {[%clk 0:02:10]}  Nxe4 {[%clk 0:02:34]} 16. Nxe4 {[%clk 0:02:08]}  Bxe4 {[%clk 0:02:34]} 17. Bxe4 {[%clk 0:02:09]}  Rxe4 {[%clk 0:02:29]} 18. Nc3 {[%clk 0:02:09]}  Re8 {[%clk 0:02:17]} 19. f5 {[%clk 0:02:04]}  Nc5 {[%clk 0:01:23]} 20. Nd5 {[%clk 0:01:54]}  Ne4 {[%clk 0:01:21]} 21. Qg2 {[%clk 0:01:37]}  c6 {[%clk 0:01:21]} 22. f6 {[%clk 0:01:29]}  Nxf6 {[%clk 0:01:14]} 23. Nxf6+ {[%clk 0:01:29]}  Bxf6 {[%clk 0:01:13]} 24. Qf3 {[%clk 0:01:29]}  Re6 {[%clk 0:00:47]} 25. Bg5 {[%clk 0:01:29]}  Kg7 {[%clk 0:00:37]} 26. Bxf6+ {[%clk 0:01:18]}  Rxf6 {[%clk 0:00:36]} 27. Qc3 {[%clk 0:01:18]}  d5 {[%clk 0:00:29]} 28. Rf2 {[%clk 0:01:02]}  Qd6 {[%clk 0:00:12]} 29. Rdf1 {[%clk 0:00:26]}  d4 {[%clk 0:00:12]} 30. Rxf6 {[%clk 0:00:26]}  Qxf6 {[%clk 0:00:07]} 31. Qc5 {[%clk 0:00:26]}  Qe6 {[%clk 0:00:02]} 32. Qxd4+ {[%clk 0:00:27]}  Kg8 {[%clk 0:00:03]} 33. Qf4 {[%clk 0:00:25]}  Re8 {[%clk 0:00:02]} 34. Kh2 {[%clk 0:00:24]}  Qe2+ {[%clk 0:00:02]} 35. Rf2 {[%clk 0:00:25]}  Qe6 {[%clk 0:00:03]} 36. Qc7 {[%clk 0:00:25]}  h5 {[%clk 0:00:02]} 37. Qb7 {[%clk 0:00:25]}  c5 {[%clk 0:00:02]} 38. h4 {[%clk 0:00:24]}  c4 {[%clk 0:00:02]} 39. bxc4 {[%clk 0:00:23]}  Qxc4 {[%clk 0:00:03]} 40. Qxa6 {[%clk 0:00:21]}  Qc5 {[%clk 0:00:03]} 41. Qf6 {[%clk 0:00:19]}  Qd5 {[%clk 0:00:02]} 42. Qc3 {[%clk 0:00:14]} 1-0


[Site "https://www.chess.com"]

[Event "Titled Tuesday Blitz April 25 Early 2023"]
[White "Vovk, Orest"]
[Black "Mahdavi, Reza"]
[WhiteFideId "14113490"]
[BlackFideId "12595926"]
[WhiteElo "2215"]
[BlackElo "2357"]
[Result "0-1"]
[Round "02"]
[TimeControl "180+2"]
[Date "2023.04.25"]
[WhiteClock "0:00:01"]
[BlackClock "0:01:29"]

1. d4 {[%clk 0:02:42]}  Nf6 {[%clk 0:03:00]} 2. Bf4 {[%clk 0:02:41]}  g6 {[%clk 0:03:00]} 3. e3 {[%clk 0:02:40]}  Bg7 {[%clk 0:03:01]} 4. Nd2 {[%clk 0:02:38]}  d6 {[%clk 0:03:01]} 5. h3 {[%clk 0:02:39]}  O-O {[%clk 0:03:02]} 6. Ngf3 {[%clk 0:02:37]}  c5 {[%clk 0:03:02]} 7. c3 {[%clk 0:02:36]}  Nc6 {[%clk 0:02:57]} 8. Bh2 {[%clk 0:02:35]}  cxd4 {[%clk 0:02:58]} 9. cxd4 {[%clk 0:02:34]}  Bf5 {[%clk 0:02:55]} 10. Qb3 {[%clk 0:02:33]}  e5 {[%clk 0:02:49]} 11. dxe5 {[%clk 0:02:23]}  dxe5 {[%clk 0:02:50]} 12. Qxb7 {[%clk 0:01:48]}  Rc8 {[%clk 0:02:32]} 13. Nb3 {[%clk 0:01:27]}  Be4 {[%clk 0:02:20]} 14. Nfd2 {[%clk 0:00:51]}  Rb8 {[%clk 0:02:12]} 15. Qa6 {[%clk 0:00:38]}  Nb4 {[%clk 0:02:12]} 16. Qc4 {[%clk 0:00:12]}  Nc2+ {[%clk 0:02:06]} 17. Ke2 {[%clk 0:00:12]}  Rb4 {[%clk 0:01:54]} 18. Qc3 {[%clk 0:00:06]}  Nd5 {[%clk 0:01:42]} 19. Qc5 {[%clk 0:00:04]}  Nxa1 {[%clk 0:01:38]} 20. f3 {[%clk 0:00:04]}  Nxb3 {[%clk 0:01:32]} 21. axb3 {[%clk 0:00:04]}  Bf5 {[%clk 0:01:32]} 22. e4 {[%clk 0:00:02]}  Rxe4+ {[%clk 0:01:33]} 23. fxe4 {[%clk 0:00:02]}  Nf4+ {[%clk 0:01:30]} 24. Kf2 {[%clk 0:00:01]}  Qxd2+ {[%clk 0:01:29]} 0-1


[Site "https://www.chess.com"]

[Event "Titled Tuesday Blitz April 25 Early 2023"]
[White "Ashraf, Artin"]
[Black "Bartel, Michal"]
[WhiteFideId "22514805"]
[BlackFideId "1119257"]
[WhiteElo "2188"]
[BlackElo "2282"]
[Result "0-1"]
[Round "02"]
[TimeControl "180+2"]
[Date "2023.04.25"]
[WhiteClock "0:00:04"]
[BlackClock "0:00:31"]

1. c4 {[%clk 0:03:00]}  e5 {[%clk 0:02:59]} 2. g3 {[%clk 0:02:54]}  c6 {[%clk 0:02:57]} 3. Nf3 {[%clk 0:02:50]}  e4 {[%clk 0:02:55]} 4. Nd4 {[%clk 0:02:50]}  d5 {[%clk 0:02:55]} 5. cxd5 {[%clk 0:02:16]}  Qxd5 {[%clk 0:02:56]} 6. Nc2 {[%clk 0:02:16]}  Nf6 {[%clk 0:02:36]} 7. Nc3 {[%clk 0:02:14]}  Qe5 {[%clk 0:02:35]} 8. Bg2 {[%clk 0:02:13]}  Be7 {[%clk 0:02:27]} 9. d4 {[%clk 0:01:54]}  exd3 {[%clk 0:02:26]} 10. Qxd3 {[%clk 0:01:53]}  O-O {[%clk 0:02:20]} 11. Bf4 {[%clk 0:01:51]}  Qa5 {[%clk 0:02:13]} 12. O-O {[%clk 0:01:49]}  Bf5 {[%clk 0:02:08]} 13. e4 {[%clk 0:01:38]}  Rd8 {[%clk 0:02:08]} 14. Qe2 {[%clk 0:01:23]}  Bg4 {[%clk 0:02:05]} 15. f3 {[%clk 0:01:13]}  Be6 {[%clk 0:02:01]} 16. a3 {[%clk 0:01:01]}  Nbd7 {[%clk 0:01:52]} 17. b4 {[%clk 0:00:59]}  Qb6+ {[%clk 0:01:50]} 18. Be3 {[%clk 0:00:59]}  Qc7 {[%clk 0:01:51]} 19. Nd4 {[%clk 0:00:57]}  Nf8 {[%clk 0:01:49]} 20. Rfd1 {[%clk 0:00:46]}  Rd7 {[%clk 0:01:37]} 21. Nxe6 {[%clk 0:00:31]}  Nxe6 {[%clk 0:01:37]} 22. Rxd7 {[%clk 0:00:30]}  Nxd7 {[%clk 0:01:35]} 23. f4 {[%clk 0:00:28]}  a5 {[%clk 0:01:32]} 24. b5 {[%clk 0:00:16]}  a4 {[%clk 0:01:18]} 25. e5 {[%clk 0:00:13]}  Nb6 {[%clk 0:01:11]} 26. Rc1 {[%clk 0:00:12]}  Bxa3 {[%clk 0:01:08]} 27. Rc2 {[%clk 0:00:10]}  c5 {[%clk 0:01:08]} 28. Ne4 {[%clk 0:00:07]}  Qe7 {[%clk 0:01:01]} 29. Nd6 {[%clk 0:00:06]}  Nd8 {[%clk 0:00:53]} 30. Nf5 {[%clk 0:00:05]}  Qe6 {[%clk 0:00:51]} 31. Nd6 {[%clk 0:00:06]}  Bb4 {[%clk 0:00:49]} 32. Nxb7 {[%clk 0:00:06]}  Nxb7 {[%clk 0:00:48]} 33. Bxb7 {[%clk 0:00:07]}  Rd8 {[%clk 0:00:47]} 34. Bc6 {[%clk 0:00:05]}  a3 {[%clk 0:00:44]} 35. Kg2 {[%clk 0:00:05]}  Qb3 {[%clk 0:00:41]} 36. Ra2 {[%clk 0:00:05]}  h5 {[%clk 0:00:40]} 37. h4 {[%clk 0:00:05]}  Nc4 {[%clk 0:00:40]} 38. Bf2 {[%clk 0:00:05]}  Nb2 {[%clk 0:00:40]} 39. Ra1 {[%clk 0:00:05]}  Nd3 {[%clk 0:00:37]} 40. Bg1 {[%clk 0:00:04]}  Bc3 {[%clk 0:00:35]} 41. Rd1 {[%clk 0:00:03]}  a2 {[%clk 0:00:35]} 42. Rxd3 {[%clk 0:00:02]}  Rxd3 {[%clk 0:00:35]} 43. Qxd3 {[%clk 0:00:03]}  a1=Q {[%clk 0:00:32]} 44. Qd8+ {[%clk 0:00:03]}  Kh7 {[%clk 0:00:33]} 45. Be4+ {[%clk 0:00:03]}  g6 {[%clk 0:00:33]} 46. Bd5 {[%clk 0:00:04]}  Qaa2+ {[%clk 0:00:31]} 0-1


[Site "https://www.chess.com"]

[Event "Titled Tuesday Blitz April 25 Early 2023"]
[White "MaryanKyrychenko"]
[Black "Gunina, Valentina"]
[BlackFideId "4167570"]
[WhiteElo "2531"]
[BlackElo "2352"]
[Result "1/2-1/2"]
[Round "02"]
[TimeControl "180+2"]
[Date "2023.04.25"]
[WhiteClock "0:00:54"]
[BlackClock "0:01:32"]

1. e4 {[%clk 0:03:00]}  c6 {[%clk 0:02:59]} 2. d4 {[%clk 0:03:00]}  d5 {[%clk 0:03:00]} 3. e5 {[%clk 0:03:01]}  c5 {[%clk 0:03:00]} 4. dxc5 {[%clk 0:03:01]}  e6 {[%clk 0:03:00]} 5. a3 {[%clk 0:03:01]}  Bxc5 {[%clk 0:03:00]} 6. b4 {[%clk 0:03:01]}  Bb6 {[%clk 0:03:00]} 7. Bb2 {[%clk 0:03:01]}  Ne7 {[%clk 0:03:00]} 8. Nf3 {[%clk 0:02:59]}  O-O {[%clk 0:03:00]} 9. Bd3 {[%clk 0:02:54]}  Ng6 {[%clk 0:03:00]} 10. O-O {[%clk 0:02:53]}  a5 {[%clk 0:03:00]} 11. b5 {[%clk 0:02:52]}  a4 {[%clk 0:03:01]} 12. c4 {[%clk 0:02:50]}  Nd7 {[%clk 0:02:55]} 13. cxd5 {[%clk 0:02:46]}  exd5 {[%clk 0:02:55]} 14. Bxg6 {[%clk 0:02:44]}  hxg6 {[%clk 0:02:55]} 15. Qxd5 {[%clk 0:02:41]}  Nc5 {[%clk 0:02:54]} 16. Qxd8 {[%clk 0:02:37]}  Rxd8 {[%clk 0:02:54]} 17. Bd4 {[%clk 0:02:32]}  Bg4 {[%clk 0:02:53]} 18. Nbd2 {[%clk 0:02:28]}  Ba5 {[%clk 0:02:28]} 19. Bxc5 {[%clk 0:02:22]}  Bxd2 {[%clk 0:02:28]} 20. Nxd2 {[%clk 0:02:19]}  Rxd2 {[%clk 0:02:27]} 21. f3 {[%clk 0:01:56]}  Rd5 {[%clk 0:02:25]} 22. Bd6 {[%clk 0:01:51]}  Bf5 {[%clk 0:02:22]} 23. b6 {[%clk 0:01:47]}  Raa5 {[%clk 0:02:17]} 24. Rfd1 {[%clk 0:01:32]}  Rxd1+ {[%clk 0:02:12]} 25. Rxd1 {[%clk 0:01:33]}  Rb5 {[%clk 0:02:13]} 26. Rd4 {[%clk 0:01:24]}  Rxb6 {[%clk 0:01:51]} 27. Rxa4 {[%clk 0:01:22]}  Rb2 {[%clk 0:01:48]} 28. Rb4 {[%clk 0:01:19]}  Rxb4 {[%clk 0:01:47]} 29. axb4 {[%clk 0:01:20]}  Be6 {[%clk 0:01:46]} 30. Kf2 {[%clk 0:01:20]}  b5 {[%clk 0:01:44]} 31. h4 {[%clk 0:01:20]}  f6 {[%clk 0:01:41]} 32. Ke3 {[%clk 0:01:13]}  fxe5 {[%clk 0:01:39]} 33. Bxe5 {[%clk 0:01:13]}  Bc4 {[%clk 0:01:38]} 34. Kf4 {[%clk 0:01:09]}  Bf1 {[%clk 0:01:38]} 35. g3 {[%clk 0:01:09]}  Be2 {[%clk 0:01:37]} 36. Ke4 {[%clk 0:01:03]}  Bd1 {[%clk 0:01:36]} 37. Bd4 {[%clk 0:00:57]}  Kf7 {[%clk 0:01:36]} 38. f4 {[%clk 0:00:58]}  Bg4 {[%clk 0:01:34]} 39. Kd5 {[%clk 0:00:57]}  Be2 {[%clk 0:01:34]} 40. Kd6 {[%clk 0:00:55]}  Bg4 {[%clk 0:01:33]} 41. Ke5 {[%clk 0:00:53]}  Be2 {[%clk 0:01:33]} 42. Ke4 {[%clk 0:00:53]}  Bg4 {[%clk 0:01:32]} 43. Ke3 {[%clk 0:00:53]}  Bd1 {[%clk 0:01:32]} 44. Ke4 {[%clk 0:00:54]}  Bg4 {[%clk 0:01:32]} 1/2-1/2


[Site "https://www.chess.com"]

[Event "Titled Tuesday Blitz April 25 Early 2023"]
[White "Arpita, Mukherjee"]
[Black "Harshavardhan G B"]
[WhiteFideId "5056403"]
[BlackFideId "25059009"]
[WhiteElo "2129"]
[BlackElo "2323"]
[Result "0-1"]
[Round "02"]
[TimeControl "180+2"]
[Date "2023.04.25"]
[WhiteClock "0:00:02"]
[BlackClock "0:01:37"]

1. e4 {[%clk 0:02:29]}  c5 {[%clk 0:02:59]} 2. Nf3 {[%clk 0:02:29]}  d6 {[%clk 0:02:59]} 3. Bb5+ {[%clk 0:02:28]}  Nd7 {[%clk 0:02:59]} 4. d4 {[%clk 0:02:27]}  cxd4 {[%clk 0:02:58]} 5. Qxd4 {[%clk 0:02:26]}  a6 {[%clk 0:02:57]} 6. Bxd7+ {[%clk 0:02:25]}  Bxd7 {[%clk 0:02:57]} 7. c4 {[%clk 0:02:25]}  e5 {[%clk 0:02:54]} 8. Qd3 {[%clk 0:02:25]}  h6 {[%clk 0:02:55]} 9. Nc3 {[%clk 0:02:17]}  Nf6 {[%clk 0:02:55]} 10. a4 {[%clk 0:02:18]}  Be7 {[%clk 0:02:52]} 11. O-O {[%clk 0:02:18]}  O-O {[%clk 0:02:52]} 12. b3 {[%clk 0:02:18]}  Nh5 {[%clk 0:02:45]} 13. Nd5 {[%clk 0:02:15]}  Be6 {[%clk 0:02:40]} 14. Nxe7+ {[%clk 0:02:14]}  Qxe7 {[%clk 0:02:39]} 15. Ba3 {[%clk 0:02:15]}  Rfd8 {[%clk 0:02:31]} 16. Nxe5 {[%clk 0:02:12]}  Qf6 {[%clk 0:02:29]} 17. Nf3 {[%clk 0:01:50]}  Bg4 {[%clk 0:02:24]} 18. Nd2 {[%clk 0:01:33]}  Nf4 {[%clk 0:02:20]} 19. Qe3 {[%clk 0:01:32]}  Bh3 {[%clk 0:02:12]} 20. g3 {[%clk 0:00:59]}  Bxf1 {[%clk 0:02:09]} 21. Rxf1 {[%clk 0:00:56]}  Ne6 {[%clk 0:02:07]} 22. f4 {[%clk 0:00:51]}  Qd4 {[%clk 0:02:04]} 23. Qxd4 {[%clk 0:00:45]}  Nxd4 {[%clk 0:02:02]} 24. Bb2 {[%clk 0:00:39]}  Nc6 {[%clk 0:01:59]} 25. Rd1 {[%clk 0:00:32]}  Rab8 {[%clk 0:01:57]} 26. Kf2 {[%clk 0:00:17]}  b5 {[%clk 0:01:55]} 27. axb5 {[%clk 0:00:17]}  axb5 {[%clk 0:01:56]} 28. cxb5 {[%clk 0:00:18]}  Rxb5 {[%clk 0:01:54]} 29. Ke3 {[%clk 0:00:18]}  d5 {[%clk 0:01:54]} 30. e5 {[%clk 0:00:18]}  Na5 {[%clk 0:01:50]} 31. Bd4 {[%clk 0:00:08]}  Nxb3 {[%clk 0:01:49]} 32. Nxb3 {[%clk 0:00:08]}  Rxb3+ {[%clk 0:01:49]} 33. Rd3 {[%clk 0:00:09]}  Rdb8 {[%clk 0:01:46]} 34. h4 {[%clk 0:00:02]}  h5 {[%clk 0:01:44]} 35. Rxb3 {[%clk 0:00:01]}  Rxb3+ {[%clk 0:01:43]} 36. Kf2 {[%clk 0:00:02]}  g6 {[%clk 0:01:43]} 37. Bc5 {[%clk 0:00:02]}  Rc3 {[%clk 0:01:42]} 38. Bd6 {[%clk 0:00:02]}  d4 {[%clk 0:01:39]} 39. e6 {[%clk 0:00:01]}  fxe6 {[%clk 0:01:38]} 40. Be5 {[%clk 0:00:02]}  Rd3 {[%clk 0:01:38]} 41. Bf6 {[%clk 0:00:02]}  Kf7 {[%clk 0:01:37]} 42. Be5 {[%clk 0:00:02]}  Ke8 {[%clk 0:01:37]} 43. Ke2 {[%clk 0:00:02]}  Rxg3 {[%clk 0:01:37]} 44. f5 {[%clk 0:00:02]}  Re3+ {[%clk 0:01:37]} 0-1


[Site "https://www.chess.com"]